{"text_format":"1","workbook":"xlsx","n_sheets":4,"sheets":["Identif","I.,IV.,IX.","II.,III.","V.,VI."],"not_rendered":{"charts":0,"images":1,"macros":1,"external_links":0,"defined_names":3,"comments":0,"pivot_tables":0},"unopened":[],"bounds":{"document_bytes":16777216,"sheet_cells":100000,"rows_first":2000,"rows_last":500,"rows_between":2000,"halvings":0,"cell_chars":16384,"cell_head_chars":4096},"cells_cut":0,"cells_raw":0,"read":"whole","date_system":"1900"}

{"sheet":"Identif","index":0,"n_rows":33,"n_cols":53,"rows_kept":33,"cut":false,"hidden":false,"merged":[[38,1,38,52],[39,1,39,52],[34,1,34,52],[35,1,35,52],[36,1,36,52],[37,1,37,52],[33,1,33,52],[21,10,21,28],[21,32,21,52],[30,0,30,52],[31,1,31,52],[22,32,22,46],[22,48,22,52],[19,10,19,28],[19,32,19,52],[32,1,32,52],[28,0,28,52],[29,0,29,52],[20,1,20,6],[20,10,20,28],[20,32,20,52],[26,0,26,7],[26,8,26,13],[26,32,26,52],[23,32,23,46],[23,48,23,52],[24,32,24,52],[25,32,25,52],[11,1,11,8],[13,1,13,8],[15,1,15,8],[17,1,17,8],[11,9,11,52],[13,9,13,52],[15,9,15,44],[15,45,15,47],[15,48,15,52],[17,9,17,52],[0,32,0,50],[1,32,2,35],[1,36,1,37],[1,38,1,46],[1,47,2,50],[2,36,2,37],[2,38,2,46],[5,13,5,31],[7,13,7,31],[8,13,8,31],[3,47,3,50],[3,32,3,35],[3,36,3,37],[3,38,3,46],[5,32,5,51]]}
[null,null,null,null,null,null,null,null,null,null,null,null,null,null,null,null,null,null,null,null,null,null,null,null,null,null,null,null,null,null,null,null,"Škol (MŠVVM SR)  11 - 01",null,null,null,null,null,null,null,null,null,null,null,null,null,null,null,null,null,null,null,"R"]
[null,null,null,null,null,null,null,null,null,null,null,null,null,null,null,null,null,null,null,null,null,null,null,null,null,null,null,null,null,null,null,null,"Rok",null,null,null,"Mes",null,"Identifikačné číslo",null,null,null,null,null,null,null,null,"Fakulta"]
[null,null,null,null,null,null,null,null,null,null,null,null,null,null,null,null,null,null,null,null,null,null,null,null,null,null,null,null,null,null,null,null,null,null,null,null,"iac"]
[null,null,null,null,null,null,null,null,null,null,null,null,null,null,null,null,null,null,null,null,null,null,null,null,null,null,null,null,null,null,null,null,"2024",null,null,null,"10"]
[]
[null,null,null,null,null,null,null,null,null,null,null,null,null,"Súhrn údajov",null,null,null,null,null,null,null,null,null,null,null,null,null,null,null,null,null,null,"Zber údajov podľa stavu: k 31. 10. 2024"]
[]
[null,null,null,null,null,null,null,null,null,null,null,null,null,"Štúdium I. a II. stupňa"]
[null,null,null,null,null,null,null,null,null,null,null,null,null,"Doktorandské štúdium"]
[]
[]
[null,"Vysoká škola"]
[]
[null,"Fakulta"]
[]
[null,"Miesto",null,null,null,null,null,null,null,null,null,null,null,null,null,null,null,null,null,null,null,null,null,null,null,null,null,null,null,null,null,null,null,null,null,null,null,null,null,null,null,null,null,null,null,"PSČ"]
[]
[null,"Ulica"]
[]
[null,null,null,null,null,null,null,null,null,null,"Podpis vedúceho",null,null,null,null,null,null,null,null,null,null,null,null,null,null,null,null,null,null,null,null,null,"Výkaz zostavil"]
[null,"Pečiatka",null,null,null,null,null,null,null,null,"spravodajskej jednotky"]
[]
[null,null,null,null,null,null,null,null,null,null,null,null,null,null,null,null,null,null,null,null,null,null,null,null,null,null,null,null,null,null,null,null,"Telefón",null,null,null,null,null,null,null,null,null,null,null,null,null,null,null,"Klapka"]
[]
[null,null,null,null,null,null,null,null,null,null,null,null,null,null,null,null,null,null,null,null,null,null,null,null,null,null,null,null,null,null,null,null,"E-mail"]
[]
["Odoslané dňa"]
[]
["Polia oranžovej farby musia byť povinne vyplnené (identifikačná časť) alebo označujú nepríspustnú chybu"]
["(údajová časť). Po vyplnení nesmie na formulári byť oranžové pole. Formulár s oranžovým poľom je chybný."]
["Komentár k výkazu (vyplníte povinne, ak na formulári ostalo žlté pole - možná chyba)"]
[null,"Nezabudnite doplniť SAMOPLATCOV!"]
[null,"Nie je potrebné uvádzať cudzincov vo veku 17 rokov menovite"]

{"sheet":"I.,IV.,IX.","index":1,"n_rows":40,"n_cols":9,"rows_kept":40,"cut":false,"hidden":false,"merged":[[5,6,5,8],[6,6,6,8],[1,0,4,0],[1,1,1,4],[2,1,2,2],[2,3,3,4],[3,1,3,2],[0,6,0,8],[1,6,1,8],[2,6,2,8],[3,6,3,8],[4,6,4,8],[8,7,9,7],[10,7,11,7],[15,7,16,7],[17,7,18,7],[6,0,6,4],[7,6,7,8],[13,0,13,4]]}
["I. Zapísaní študujúci (fyzické osoby) - súhrn",null,null,"Fakulta",{"$f":"Identif!AV4","v":0},null,"Výpis chýb v príslušnom riadku"]
[null,"Študujúci vo forme štúdia"]
[null,"slov. štátneho",null,"cudzinci",null,null,{"$f":"IF(E1<1,\"Nie je vyplnený kód fakulty! Vyplňte na hárku Identif\",\"\")","v":"Nie je vyplnený kód fakulty! Vyplňte na hárku Identif"}]
[null,"občianstva"]
[null,"spolu","ženy","spolu","ženy"]
["a",2,3,4,5]
["Denná forma štúdia"]
["Spolu denná forma",{"$f":"SUM(B9,B11)","v":0},{"$f":"SUM(C9,C11)","v":0},{"$f":"SUM(D9,D11)","v":0},0]
["Štúdium I.,  II. stupňa, súvislé (I. + II.)",null,null,null,null,null,{"$f":"IF(C9>B9,\"Stĺpec 3 je väčší ako stĺpec 2\",IF(E9>D9,\"Stĺpec 5 je väčší ako stĺpec 4\",\" \"))","v":" "},{"$f":"IF(B10>B9,\"Stĺpec 2 samoplatci riadne viac ako spolu\",IF(C10>C9,\"Stĺpec 3 samoplatci riadne viac ako spolu\",IF(D10>D9,\"Stĺpec 4 samoplatci riadne viac ako spolu\",IF(E10>E9,\"Stĺpec5 samoplatci riadne viac ako spolu\",\" \"))))","v":" "},{"$f":"IF(B9+D9=0, \"nulové údaje - len upozornenie, či netreba vyplniť\",\"\")","v":"nulové údaje - len upozornenie, či netreba vyplniť"}]
["z toho samoplatci a platci",null,null,null,null,null,{"$f":"IF(C10>B10,\"Stĺpec 3 je väčší ako stĺpec 2\",IF(E10>D10,\"Stĺpec 5 je väčší ako stĺpec 4\",\" \"))","v":" "},null,{"$f":"IF(B10+D10=0, \"nulové údaje - len upozornenie, či netreba vyplniť\",\"\")","v":"nulové údaje - len upozornenie, či netreba vyplniť"}]
["Štúdium III. stupňa (doktorandské)",null,null,null,null,null," ",{"$f":"IF(B12>B11,\"Stĺpec 2 samoplatci doktor viac ako spolu\",IF(C12>C11,\"Stĺpec 3 samoplatci doktor viac ako spolu\",IF(D12>D11,\"Stĺpec 4 samoplatci doktor viac ako spolu\",IF(E12>E11,\"Stĺpec5 samoplatci doktor viac ako spolu\",\" \"))))","v":" "},"nulové údaje - len upozornenie, či netreba vyplniť"]
["z toho samoplatci a platci",null,null,null,null,null," ",{"$f":"IF(B12>B11,\"Stĺpec 2 samoplatci doktor viac ako spolu\",IF(C12>C11,\"Stĺpec 3 samoplatci doktor viac ako spolu\",IF(D12>D11,\"Stĺpec 4 samoplatci doktor viac ako spolu\",IF(E12>E11,\"Stĺpec5 samoplatci doktor viac ako spolu\",\" \"))))","v":" "},"nulové údaje - len upozornenie, či netreba vyplniť"]
[]
["Externá forma štúdia"]
["Spolu externá forma",{"$f":"SUM(B16,B18)","v":0},{"$f":"SUM(C16,C18)","v":0},{"$f":"SUM(D16,D18)","v":0},0]
["Štúdium I.,  II. stupňa, súvislé (I. + II.)",null,null,null,null,null,{"$f":"IF(C16>B16,\"Stĺpec 3 je väčší ako stĺpec 2\",IF(E16>D16,\"Stĺpec 5 je väčší ako stĺpec 4\",\" \"))","v":" "},{"$f":"IF(B17>B16,\"Stĺpec 2 samoplatci riadne viac ako spolu\",IF(C17>C16,\"Stĺpec 3 samoplatci riadne viac ako spolu\",IF(D17>D16,\"Stĺpec 4 samoplatci riadne viac ako spolu\",IF(E17>E16,\"Stĺpec5 samoplatci riadne viac ako spolu\",\" \"))))","v":" "},{"$f":"IF(B16+D16=0, \"nulové údaje - len upozornenie, či netreba vyplniť\",\"\")","v":"nulové údaje - len upozornenie, či netreba vyplniť"}]
["z toho samoplatci a platci",null,null,null,null,null,{"$f":"IF(C17>B17,\"Stĺpec 3 je väčší ako stĺpec 2\",IF(E17>D17,\"Stĺpec 5 je väčší ako stĺpec 4\",\" \"))","v":" "},null,{"$f":"IF(B17+D17=0, \"nulové údaje - len upozornenie, či netreba vyplniť\",\"\")","v":"nulové údaje - len upozornenie, či netreba vyplniť"}]
["Štúdium III. stupňa (doktorandské)",null,null,null,null,null," ",{"$f":"IF(B19>B18,\"Stĺpec 2 samoplatci doktor viac ako spolu\",IF(C19>C18,\"Stĺpec 3 samoplatci doktor viac ako spolu\",IF(D19>D18,\"Stĺpec 4 samoplatci doktor viac ako spolu\",IF(E19>E18,\"Stĺpec5 samoplatci doktor viac ako spolu\",\" \"))))","v":" "},"nulové údaje - len upozornenie, či netreba vyplniť"]
["z toho samoplatci a platci",null,null,null,null,null," ",{"$f":"IF(B19>B18,\"Stĺpec 2 samoplatci doktor viac ako spolu\",IF(C19>C18,\"Stĺpec 3 samoplatci doktor viac ako spolu\",IF(D19>D18,\"Stĺpec 4 samoplatci doktor viac ako spolu\",IF(E19>E18,\"Stĺpec5 samoplatci doktor viac ako spolu\",\" \"))))","v":" "},"nulové údaje - len upozornenie, či netreba vyplniť"]
[]
["Upozornenie na zmenu spôsobu zberu údajov o študujúcich VŠ"]
["Od akademického roku 2024/2025 sa údaje o študujúcich podľa:",null,"jednotlivých študijných programov (forma, stupeň, druh, metóda, dĺžka, jazyk)"]
[null,null,"štátnej príslušnosti (podľa jednotlivých štátov pre cudzincov)"]
[null,null,"veku"]
["budú preberať z Centrálneho registra študentov VŠ (CRŠ) automatizovane."]
[]
["Formulár slúži na overenie/potvrdenie správnosti údajov zadaných školou, fakultou do CRŠ o študujúcich"]
["a vyplnenie údajov, ktoré aktuálne nie sú prevzaté z CRŠ."]
[]
["V tomto formulári sa doplnia manuálne údaje: ","I. - študujúcich úhrnom  (I.,  II. stupeň, súvislé štúdium = spojený I. a II. stupeň, III. stupeň štúdia)"]
[null,"II. - novoprijatí"]
[null,"V. - ostatné formy štúdia"]
[null,"VI. - štipendiá"]
[]
["Študujúci UTV a učitelia sa sledujú na samostatných formulároch rovnako ako v minulom roku."]
[]
["CVTI SR si prevezme údaje priamo z CRŠ 16. novembra, t.zn., že škola, fakulta je povinná "]
["do 15. novembra zaktualizovať v CRŠ všetky údaje za svojich študujúcich "]
["V prípade, že vyplnený formulár zašlete elektronicky na kontrolu do 16. novembra,"]
["tak spätná väzba z CVTI SR o kontrole správnosti bude realizovaná až po prevzatí dát z CRŠ (po 16.11.)."]

{"sheet":"II.,III.","index":2,"n_rows":22,"n_cols":15,"rows_kept":22,"cut":false,"hidden":false,"merged":[[13,12,13,13],[10,14,10,15],[11,12,11,13],[14,12,14,13],[21,0,21,8],[18,12,18,13],[19,12,19,13],[17,0,17,8],[16,0,16,8],[18,0,18,8],[19,0,19,8],[11,0,11,1],[18,14,18,15],[14,14,14,15],[1,0,6,0],[1,1,6,1],[1,2,1,11],[2,2,2,9],[2,10,2,11],[3,2,6,2],[4,10,4,11],[5,3,6,3],[3,3,4,3],[3,4,3,9],[4,4,5,5],[4,6,5,7],[4,8,5,9],[1,13,1,15],[3,10,3,11],[8,12,8,13],[9,12,9,13],[12,12,12,13],[10,12,10,13],[11,2,11,11],[5,10,5,11],[6,12,6,13],[2,12,2,13],[3,12,3,13],[4,12,4,13],[5,12,5,13],[7,12,7,13]]}
["II. Novoprijatí na štúdium v 1. akademickom roku  (bez opakovane zapísaných)",null,null,null,null,null,null,null,null,null,null,null,"Fakulta",{"$f":"Identif!AV4","v":0}]
[null,"I.r.","Novoprijatí  so slovenským štátnym občianstvom - denná forma štúdia",null,null,null,null,null,null,null,null,null,null,{"$f":"IF(N1<1,\"Nie je vyplnený kód fakulty! Vyplňte na hárku Identif\",\"\")","v":"Nie je vyplnený kód fakulty! Vyplňte na hárku Identif"}]
[null,null,"bakalárske a spojené (I. a II. stupeň spojený do jedného celku) štúdium",null,null,null,null,null,null,null,"pokračujúce"]
[null,null,"spolu","z toho","zo stĺ 2 a 3, ktorí získali úplné stredné vzdelanie v odbore",null,null,null,null,null,"štúdium"]
[null,null,null,null,"xxxx 5, J",null,"xxxx 6, 7, M, N, Q",null,"xxxx 4, K, L",null,"II. stupeň"]
[null,null,null,"ženy"]
[null,null,null,null,"spolu","ženy","spolu","ženy","spolu","ženy","spolu","ženy","Výpis chýb odd. II."]
["a",1,2,3,4,5,6,7,8,9,10,11,"v jednotlivých riadkoch"]
["Priamo zo škôl","0201",{"$f":"SUM(E9+G9+I9)","v":0},0,null,null,null,null,null,null,null,null,{"$f":"IF(E9<F9,\"r0201 stĺ. 4 < stĺ. 5\",IF(G9<H9,\"r0201 stĺ. 6 < stĺ. 7\",IF(I9<J9,\"r0201 stĺ. 8 < stĺ. 9\",IF(K9<L9,\"r0201 stĺ. 10 < stĺ. 11\",\" \"))))","v":" "}]
["Z pracovísk a odinakiaľ","0202",0,0,null,null,null,null,null,null,null,null,{"$f":"IF(E10<F10,\"r0202 stĺ. 4 < stĺ. 5\",IF(G10<H10,\"r0202 stĺ. 6 < stĺ. 7\",IF(I10<J10,\"r0202 stĺ. 8 < stĺ. 9\",IF(K10<L10,\"r0202 stĺ. 10 < stĺ. 11\",\" \"))))","v":" "}]
["Spolu (0201 a 0202)","0203",{"$f":"SUM(E11+G11+I11)","v":0},0,{"$f":"SUM(E9:E10)","v":0},{"$f":"SUM(F9:F10)","v":0},0,0,0,0,0,{"$f":"SUM(L9:L10)","v":0},{"$f":"IF(AND(C11>0,C9=0),\"Nikto priamo zo školy?\",\" \")","v":" "},null,{"$f":"IF(OR(C11+K11 > 'I.,IV.,IX.'!B9,D11+L11>'I.,IV.,IX.'!C9),\"Novo/ženy viac ako študujúci spolu v odd. I.?\",\" \")","v":" "}]
[null,null,"Novoprijatí  so slovenským štátnym občianstvom - externá forma štúdia"]
["Priamo zo škôl","0204",{"$f":"SUM(E13+G13+I13)","v":0},0,null,null,null,null,null,null,null,null,{"$f":"IF(E13<F13,\"r0204 stĺ. 4 < stĺ. 5\",IF(G13<H13,\"r0204 stĺ. 6 < stĺ. 7\",IF(I13<J13,\"r0204 stĺ. 8 < stĺ. 9\",IF(K13<L13,\"r0204 stĺ. 10 < stĺ. 11\",\" \"))))","v":" "}]
["Z pracovísk a odinakiaľ","0205",0,0,null,null,null,null,null,null,null,null,{"$f":"IF(E14<F14,\"r0205 stĺ. 4 < stĺ. 5\",IF(G14<H14,\"r0205 stĺ. 6 < stĺ. 7\",IF(I14<J14,\"r0205 stĺ. 8 < stĺ. 9\",IF(K14<L14,\"r0205 stĺ. 10 < stĺ. 11\",\" \"))))","v":" "}]
["Spolu (0204 a 0205)","0206",0,0,{"$f":"SUM(E13:E14)","v":0},0,0,0,0,0,0,0,{"$f":"IF(AND(C15>0,C13=0),\"Nikto priamo zo školy?\",\" \")","v":" "},null,{"$f":"IF(OR(C15+K15 > 'I.,IV.,IX.'!B16,D15+L15>'I.,IV.,IX.'!C16),\"Novo/ženy viac ako študujúci spolu v odd. I.?\",\" \")","v":" "}]
[]
["Doplňujúce údaje k novoprijatým pre kontrolu na dáta z exportu CRŠ",null,null,null,null,null,null,null,null,"I.r.","spolu","ženy"]
["a",null,null,null,null,null,null,null,null,1,2,3]
["Novoprijatí inej štátnej príslušnosti (cudzinci) I., II. a spojeného I. a II. stupňa v dennej a extenej forme celkom",null,null,null,null,null,null,null,null,"0207",null,null,{"$f":"IF(K19<L19,\"r0207 stĺ. 2 < stĺ. 3\",\" \")","v":" "},null,{"$f":"IF(OR(K19 > 'I.,IV.,IX.'!D8+ 'I.,IV.,IX.'!D15,L19> 'I.,IV.,IX.'!E8+ 'I.,IV.,IX.'!E15),\"Novo/ženy viac ako študujúci spolu v odd. I.?\",\" \")","v":" "}]
["Novoprijatí III. stupňa (doktorandi) úhrnom - (slovenské štátne občianstvo + cudzinci, denná + externá forma)",null,null,null,null,null,null,null,null,"0208",null,null,{"$f":"IF(K20<L20,\"r0208 stĺ. 2 < stĺ. 3\",\" \")","v":" "}]
[]
["Celkový počet novoprijatých v aktuálnom akademickom roku  - bude kontrolovaný na CRŠ",null,null,null,null,null,null,null,null,"0209",{"$f":"SUM(C11,K11,C15,K15,K19,K20)","v":0},{"$f":"SUM(D11,L11,D15,L15,L19,L20)","v":0}]

{"sheet":"V.,VI.","index":3,"n_rows":37,"n_cols":18,"rows_kept":37,"cut":false,"hidden":false,"merged":[[16,15,17,17],[18,15,19,17],[28,12,28,15],[28,16,28,17],[27,16,27,17],[20,14,21,14],[18,14,19,14],[18,12,19,12],[18,13,19,13],[20,15,21,17],[22,15,23,17],[16,9,17,9],[16,10,17,10],[16,11,17,11],[16,12,17,12],[16,13,17,13],[35,16,35,17],[3,15,3,17],[4,15,4,17],[6,16,6,17],[5,16,5,17],[8,15,8,17],[9,15,9,17],[10,15,10,17],[11,15,11,17],[31,12,31,15],[32,12,32,15],[32,16,32,17],[33,12,33,15],[22,12,23,12],[12,15,12,17],[13,15,13,17],[14,15,15,17],[7,15,7,17],[14,10,15,10],[14,11,15,11],[14,12,15,12],[14,13,15,13],[14,14,15,14],[29,0,29,4],[29,10,29,11],[7,1,7,4],[11,1,11,3],[16,2,17,4],[14,2,15,4],[10,1,10,3],[14,6,15,6],[9,1,9,3],[28,10,28,11],[14,9,15,9],[18,2,19,4],[20,2,21,4],[20,7,21,7],[16,14,17,14],[18,5,19,5],[18,6,19,6],[18,7,19,7],[16,5,17,5],[16,6,17,6],[22,6,23,6],[22,7,23,7],[20,8,21,8],[22,8,23,8],[22,2,23,4],[26,5,28,5],[26,6,26,11],[18,8,19,8],[18,9,19,9],[18,10,19,10],[18,11,19,11],[30,12,30,15],[29,12,29,15],[26,16,26,17],[22,13,23,13],[22,14,23,14],[20,12,21,12],[20,13,21,13],[36,16,36,17],[1,6,3,6],[31,16,31,17],[1,15,2,17],[34,10,34,11],[34,6,34,7],[29,6,29,7],[29,8,29,9],[27,6,28,7],[20,6,21,6],[20,9,21,9],[20,10,21,10],[20,11,21,11],[22,9,23,9],[22,10,23,10],[22,11,23,11],[16,7,17,7],[4,0,4,4],[1,8,1,14],[2,8,2,9],[2,10,3,10],[2,11,3,11],[2,12,3,12],[2,13,3,13],[2,14,3,14],[1,0,3,4],[1,5,3,5],[6,0,6,2],[6,3,6,4],[5,0,5,2],[5,3,5,4],[32,10,32,11],[33,0,33,4],[33,6,33,7],[33,8,33,9],[33,10,33,11],[30,0,30,4],[8,1,8,4],[7,0,23,0],[31,0,31,4],[12,1,23,1],[12,2,12,4],[13,2,13,4],[14,5,15,5],[14,7,15,7],[14,8,15,8],[20,5,21,5],[16,8,17,8],[24,0,24,4],[26,0,28,4],[22,5,23,5],[34,0,34,4],[34,8,34,9],[32,0,32,4],[32,6,32,7],[32,8,32,9],[27,8,28,9],[27,10,27,11],[30,8,30,9],[30,10,30,11],[31,10,31,11],[31,6,31,7],[31,8,31,9],[30,6,30,7]]}
["V. Ostatné formy štúdia",null,null,null,null,null,null,null,null,null,null,null,null,null,null,"Fakulta",{"$f":"Identif!AV4","v":0}]
[null,null,null,null,null,"I.r.","Spolu",null,"zo stĺpca 2 v akademickom roku",null,null,null,null,null,null,{"$f":"IF(Q1<1,\"Nie je vyplnený kód fakulty! Vyplňte na hárku Identif\",\"\")","v":"Nie je vyplnený kód fakulty! Vyplňte na hárku Identif"}]
[null,null,null,null,null,null,null,"z toho","1.",null,"2.","3.","4.","5.","6."]
[null,null,null,null,null,null,null,"ženy","spolu","novopr.",null,null,null,null,null,"Výpis chýb odd. V."]
["a",null,null,null,null,1,2,3,4,5,6,7,8,9,10,"v jednotlivých riadkoch"]
["Mimoriadne",null,null,"študujúci spolu",null,"0501",{"$f":"SUM(I6+K6+L6+M6+N6+O6)","v":0},"x",null,null,null,null,null,null,null,{"$f":"IF(I6<J6,\"S4 < S5\",\" \")","v":" "},{"$f":"IF(I7>I6,\"r0501<r0502 S4\",IF(J7>J6,\"r0501<r0502 S5\",IF(K7>K6,\"r0501<r0502 S6\",IF(L7>L6,\"r0501<r0502 S7\",IF(M7>M6,\"r0501<r0502 S8\",IF(N7>N6,\"r0501<r0502 S9\",IF(O7>O6,\"r0501<r0502 S10\",\" \")))))))","v":" "}]
["štúdium",null,null,"z toho ženy",null,"0502",0,"x",null,null,null,null,null,null,null,{"$f":"IF(I7<J7,\"S4 < S5\",\" \")","v":" "},{"$f":"IF(I6=I7,IF(J6<>J7,\"Novo ženy<>ženy 1r\",\" \"),IF(I7-J7>I6-J6,\"Nesprávne ženy v r0502\",\" \"))","v":" "}]
["Zvláštne druhy štúdia","študujúci spolu (0505 až 0514)",null,null,null,"0503",0,"x",{"$f":"SUM(I10:I23)","v":0},0,0,0,0,0,0,{"$f":"IF(I8<I9,\"r0503 < r0504 S4\",IF(J8<J9,\"r0503 < r0504 S5\",IF(K8<K9,\"r0503 < r0504 S6\",IF(L8<L9,\"r0503 < r0504 S7\",IF(M8<M9,\"r0503 < r0504 S8\",IF(N8<N9,\"r0503 < r0504 S 9\",IF(O8<O9,\"r0503 < r0504 S10\",\" \")))))))","v":" "}]
[null,"z toho ženy",null,null,null,"0504",0,"x",null,null,null,null,null,null,null,{"$f":"IF(G9<>SUM(H10:H23),\"r0504 s4+6 až 10<>s3 r0505 až 0514\",IF(I9<J9,\"r0504 S4 < S5\",\" \"))","v":" "}]
[null,"doplňujúce",null,null,"absolventov VŠ","0505",0,null,null,null,null,null,null,null,null,{"$f":"IF(G10<H10,\"r0505 S2 < S3\",IF(I10<J10,\"r0505 S4 < S5\",\" \"))","v":" "}]
[null,"pedagogické",null,null,"absolventov SŠ","0506",0,null,null,null,null,null,null,null,null,{"$f":"IF(G11<H11,\"r0506 S2 < S3\",IF(I11<J11,\"r0506 S4 < S5\",\" \"))","v":" "}]
[null,"štúdium pre",null,null,"študentov VŠ","0507",0,null,null,null,null,null,null,null,null,{"$f":"IF(G12<H12,\"r0507 S2 < S3\",IF(I12<J12,\"r0507 S4 < S5\",\" \"))","v":" "}]
[null,"rozširujúce štúdium","na vyučovanie ďalšieho VVP",null,null,"0508",0,null,null,null,null,null,null,null,null,{"$f":"IF(G13<H13,\"r0508 S2 < S3\",IF(I13<J13,\"r0508 S4 < S5\",\" \"))","v":" "}]
[null,null,"na vyučovanie VVP",null,null,"0509",0,null,null,null,null,null,null,null,null,{"$f":"IF(G14<H14,\"r0509 S2 < S3\",IF(I14<J14,\"r0509 S4 < S5\",\" \"))","v":" "}]
[null,null,"na vyučovanie a odb. výchovu v špeciálnych školách 2 ročné",null,null,"0510",0,null,null,null,null,null,null,null,null,{"$f":"IF(G15<H15,\"r0510 S2 < S3\",IF(I15<J15,\"r0510 S4 < S5\",\" \"))","v":" "}]
[]
[null,null,"na výchovu v MŠ pre deti so špec. výchovno-vzdelávacími potrebami",null,null,"0511",{"$f":"SUM(I17+K17+L17+M17+N17+O17)","v":0},null,null,null,null,null,null,null,null,{"$f":"IF(G17<H17,\"r0511 S2 < S3\",IF(I17<J17,\"r0511 S4 < S5\",\" \"))","v":" "}]
[]
[null,null,"na vyučovanie v špeciálnych školách 3 ročné",null,null,"0512",{"$f":"SUM(I19+K19+L19+M19+N19+O19)","v":0},null,null,null,null,null,null,null,null,{"$f":"IF(G19<H19,\"r0512 S2 < S3\",IF(I19<J19,\"r0512 S4 < S5\",\" \"))","v":" "}]
[]
[null,null,"na vyučovanie odborných predmetov na stredných školách",null,null,"0513",{"$f":"SUM(I21+K21+L21+M21+N21+O21)","v":0},null,null,null,null,null,null,null,null,{"$f":"IF(G21<H21,\"r0513 S2 < S3\",IF(I21<J21,\"r0513 S4 < S5\",\" \"))","v":" "}]
[]
[null,null,"pre výchovnú činnosť v špeciálnych školách a zariadeniach",null,null,"0514",{"$f":"SUM(I23+K23+L23+M23+N23+O23)","v":0},null,null,null,null,null,null,null,null,{"$f":"IF(G23<H23,\"r0514 S2 < S3\",IF(I23<J23,\"r0514 S4 < S5\",\" \"))","v":" "}]
[]
["Kontrolný súčet (0501 až 0514)",null,null,null,null,"0516",{"$f":"SUM(G6:G23)","v":0},0,0,0,0,0,0,0,0]
[]
["VI. Štipendiá za minulý akademický rok",null,null,null,null,"I.r.","Štipendium",null,null,null,null,null,null,null,null,null,"Kontrolný prepočet"]
[null,null,null,null,null,null,"sociálne",null,"motivačné a ostatné",null,"z vlastných",null,null,null,null,null,"priemerných štipendií"]
[null,null,null,null,null,null,null,null,null,null,"zdrojov",null,"Výpis chýb odd. VI.",null,null,null,"na 1 štipendistu"]
["a",null,null,null,null,1,2,null,3,null,4,null,"v jednotlivých riadkoch",null,null,null,"sociálne","ostatné"]
["Priemerný počet štipendistov",null,null,null,null,"0601",null,null,null,null,"x",null,{"$f":"IF(AND(G31>0,G33=0),\"S2 r0601>0 a r0603=0 alebo naopak\",IF(AND(G31=0,G33>0),\"S2 r0601>0 a r0603=0 alebo naopak\",\" \"))","v":" "},null,null,null,{"$f":"IF(G31>0,AVERAGE(G33/G31),0)","v":0},{"$f":"IF(I31>0,AVERAGE(I33/I31),0)","v":0}]
["Počet štipendistov (fyzické osoby)",null,null,null,null,"0602","x",null,"x",null,null,null,{"$f":"IF(AND(I31>0,I33=0),\"S3 r0601>0 a r0603=0 alebo naopak\",IF(AND(I31=0,I33>0),\"S3 r0601>0 a r0603=0 alebo naopak\",\" \"))","v":" "},null,null,null,"mimoriadne"]
["Vyplatená čiastka za rok v €",null,null,null,null,"0603",null,null,null,null,null,null,{"$f":"IF(AND(K32>0,K33=0),\"S4 r0602>0 a r0603=0 alebo naopak\",IF(AND(K32=0,K33>0),\"S4 r0602>0 a r0603=0 alebo naopak\",\" \"))","v":" "},null,null,null,{"$f":"IF(K32>0,AVERAGE(K33/K32),0)","v":0}]
["z toho zo štátneho rozpočtu",null,null,null,null,"0604",null,null,null,null,"x",null,{"$f":"IF(OR(G33<G34,I33<I34),\"Riadok 0604 je väčší ako riadok 0603\",\" \")","v":" "}]
["Kontrolný súčet  (0601 až 0604)",null,null,null,null,"0616",{"$f":"SUM(G31:H34)","v":0},null,{"$f":"SUM(I31:J34)","v":0},null,{"$f":"SUM(K32:L34)","v":0}]
[null,null,null,null,null,null,null,null,null,null,null,null,null,null,null,null,{"$f":"IF(OR(AND(Q31<=10,Q31>0),AND(R31<=10,R31>0),AND(Q33<=10,Q33>0)),\"Malý priemer\",\" \")","v":" "}]
[null,null,null,null,null,null,null,null,null,null,null,null,null,null,null,null,{"$f":"IF(OR(Q31>3000,R31>2000,Q33>2000),\"Veľký priemer \",\" \")","v":" "}]